bitfinex/quotes_ETHUSD_20250930
["timestamp","ask_amount","ask_price","bid_price","bid_amount"]
[1759242903600,1e-08,4130.7,4130.6,2.902]
[1759242904426,2.42091694,4130.7,4130.6,2.902]
[1759242904602,1e-08,4130.7,4130.6,2.902]
[1759242905123,1e-08,4130.7,4129.5,2.42155842]
[1759242905124,2.42106179,4130.5,4129.5,2.42159849]
[1759242905432,2.42106179,4130.5,4128.8,0.002]
[1759242905433,2.42095579,4130.6,4129.8,2.42137685]
[1759242905639,2.42126099,4130.1,4129.6,0.002]
[1759242905840,2.42095579,4130.6,4129.6,0.002]
[1759242906025,1e-08,4130.7,4129.7,2.249]
[1759242906213,2.42131387,4130.0,4129.7,2.249]
[1759242906733,2.4214834,4129.7,4129.6,0.002]
[1759242906935,2.4214834,4129.7,4129.6,2.904]
[1759242907134,2.4214834,4129.7,4129.6,0.002]
[1759242907135,2.54376147,4129.7,4129.6,0.002]
[1759242907737,2.42131084,4130.0,4129.6,0.002]
[1759242907898,0.12279732,4129.8,4129.6,0.002]
[1759242908103,2.42136378,4130.0,4129.6,0.002]
[1759242908332,2.4,4130.5,4129.6,0.002]
[1759242908550,0.12040634,4130.3,4129.6,2.74054492]
[1759242908845,1e-08,4130.7,4129.6,0.29482172]
[1759242909012,1e-08,4130.7,4130.2,2.42117421]
[1759242909221,1e-08,4130.7,4130.5,2.42098597]
[1759242909398,1e-08,4130.7,4130.6,2.92620955]
[1759242909601,1e-08,4130.7,4130.6,2.902]
[1759242910032,1e-08,4130.7,4130.6,5.32295579]
[1759242910232,1e-08,4130.7,4130.6,6.09736451]
[1759242910405,1e-08,4130.7,4130.6,6.88936451]
[1759242911002,1e-08,4130.7,4130.6,7.01016451]
[1759242912532,1e-08,4130.7,4130.6,4.59599166]
[1759242912704,1e-08,4130.7,4130.6,7.49799166]
[1759242913136,1e-08,4130.7,4130.6,4.59599166]
[1759242913336,1e-08,4130.7,4130.6,0.1208]
[1759242913503,1e-08,4130.7,4130.6,3.0228]
[1759242914049,1e-08,4130.7,4130.6,5.46796534]
[1759242914205,1e-08,4130.7,4130.6,5.44375579]
[1759242914410,1e-08,4130.7,4130.6,3.0228]
[1759242915050,1e-08,4130.7,4130.6,0.1208]
[1759242915232,1e-08,4130.7,4130.6,3.0218]
[1759242915542,2.4210144,4130.5,4130.4,2.901]
[1759242915842,2.42107478,4130.4,4130.1,2.763]
[1759242916051,2.42119025,4130.2,4130.1,2.901]
[1759242916622,2.42126085,4130.1,4129.6,0.002]
[1759242916943,1e-08,4130.7,4129.6,0.002]
[1759242917117,2.4,4130.5,4129.6,0.057]
[1759242917316,1e-08,4130.7,4129.6,0.057]
[1759242917765,2.42137018,4129.9,4129.6,0.057]
[1759242918039,2.4214834,4129.7,4129.6,0.057]
[1759242918241,2.4214834,4129.7,4129.6,0.002]
[1759242921112,2.4,4130.4,4129.6,0.002]
[1759242921316,7.24226326,4130.3,4129.6,0.002]
[1759242921549,2.4214834,4129.7,4129.6,0.002]
[1759242925549,4.9422834,4129.7,4129.6,0.002]
[1759242926737,2.5208,4129.7,4129.6,0.002]
[1759242926928,2.4,4129.7,4129.6,0.002]
[1759242927353,2.54205611,4130.1,4129.6,0.002]
[1759242927655,2.4,4130.0,4129.6,0.002]
[1759242927855,0.1208,4130.1,4129.6,0.002]
[1759242928225,2.4,4130.2,4129.6,0.002]
[1759242928432,2.5422834,4129.7,4129.6,0.002]
[1759242928632,4.9422834,4129.7,4129.6,0.002]
[1759242928834,2.5208,4129.7,4129.6,0.002]
[1759242929235,2.4,4129.7,4129.6,0.002]
[1759242929637,4.8214834,4129.7,4129.6,0.002]
[1759242930544,2.4,4129.7,4129.6,0.002]
[1759242930744,2.4,4129.7,4129.6,0.1228]
[1759242930945,4.8214834,4129.7,4129.6,0.1228]
[1759242931141,4.8214834,4129.7,4129.6,0.002]
[1759242932855,7.7214834,4129.7,4129.6,0.002]
[1759242933570,7.7214834,4129.7,4128.7,1e-08]
[1759242933571,2.42201123,4128.8,4128.7,1e-08]
[1759242933867,2.42212856,4128.6,4127.3,0.002]
[1759242934165,2.42230458,4128.3,4127.3,0.002]
[1759242934372,2.42271338,4127.7,4127.3,0.002]
[1759242934567,2.4,4128.2,4127.3,0.002]
[1759242934749,2.42242193,4128.1,4127.3,0.002]
[1759242934949,2.4,4128.2,4127.3,0.002]
[1759242935144,2.4227725,4127.6,4127.3,0.002]
[1759242935345,2.4,4128.2,4127.3,0.002]
[1759242935546,2.42283277,4127.4,4127.3,0.002]
[1759242935746,2.42259799,4127.8,4127.3,0.002]
[1759242935960,2.4,4128.2,4127.3,0.002]
[1759242936172,2.42260812,4127.8,4127.3,0.002]
[1759242936377,5.3,4128.4,4127.3,0.002]
[1759242936547,2.42250627,4128.0,4127.3,0.002]
[1759242936869,2.9,4129.0,4127.3,0.24449615]
[1759242937074,2.42253382,4128.0,4127.3,0.002]
[1759242937281,2.42236788,4128.2,4127.3,0.002]
[1759242937438,2.42240788,4128.2,4127.4,2.42282511]
[1759242937635,4.82204218,4128.8,4127.5,2.42275235]
[1759242937893,2.4226067,4127.8,4127.3,0.002]
[1759242938072,2.4,4128.4,4127.3,0.002]
[1759242938659,2.4227643,4127.6,4127.3,0.002]
[1759242938837,2.42267299,4127.7,4127.3,0.002]
[1759242939039,2.4,4128.4,4127.3,0.002]
[1759242939373,2.9,4129.5,4127.4,0.792]
[1759242939578,2.42204006,4128.8,4128.0,2.42247645]
[1759242939766,2.4,4129.0,4128.2,2.42234454]
[1759242939941,2.42178247,4129.2,4128.3,0.02422304]
[1759242940146,2.9,4129.9,4128.4,2.42222963]
[1759242940373,2.42177632,4129.3,4128.5,2.42217811]
[1759242940581,4.82142476,4129.8,4128.1,2.42241371]
[1759242940874,4.82142476,4129.8,4127.8,1.803]
[1759242941171,2.9,4129.9,4127.8,1.803]
[1759242941172,2.42181852,4129.2,4127.9,2.4225393]
[1759242941471,2.4,4129.1,4127.8,1.803]
[1759242941694,2.4218416,4129.1,4128.3,2.42226353]
[1759242941905,2.42197153,4128.9,4128.1,2.42237144]
[1759242942195,2.42197153,4128.9,4128.2,2.42234219]
[1759242942398,2.42180683,4129.2,4128.4,2.42222106]
[1759242942596,2.42172925,4129.3,4128.5,2.42213865]
[1759242942892,2.4218121,4129.2,4128.4,2.42222932]
[1759242943193,2.42165525,4129.5,4128.6,2.42211719]
[1759242943394,2.42168317,4129.4,4128.7,2.42206383]
[1759242943599,0.1208,4129.3,4128.8,0.1208]
[1759242943898,2.4,4129.2,4128.8,0.1208]
[1759242944601,4.82184027,4129.1,4128.8,0.1208]
[1759242944768,2.54257492,4129.3,4128.8,0.1208]
[1759242944972,2.5208,4129.3,4128.8,0.1208]
[1759242945316,2.42177661,4129.2,4128.8,0.1208]
[1759242945594,2.42156572,4129.6,4129.0,0.1208]
[1759242945797,2.4214834,4129.7,4128.4,2.9]
[1759242945969,2.42195257,4128.9,4128.8,0.1208]
[1759242946170,2.42207197,4128.7,4128.1,2.9]
[1759242946370,2.42202458,4128.8,4128.5,0.1208]
[1759242947012,4.82190715,4129.0,4128.5,0.1208]
[1759242947304,2.4,4129.0,4128.5,0.1208]
[1759242947604,4.82190158,4129.0,4128.5,0.1208]
[1759242947798,0.1208,4129.1,4128.5,0.1208]
[1759242947975,2.54266102,4129.1,4128.5,0.1208]
[1759242948180,2.4,4129.8,4128.6,0.02422128]
[1759242948365,0.1208,4129.3,4128.7,2.42204937]
[1759242948566,2.4,4129.3,4129.0,0.1208]
[1759242948798,2.4,4129.7,4129.2,0.1208]
[1759242948998,2.42153122,4129.7,4129.2,0.1208]
[1759242949195,0.1208,4129.8,4129.2,0.1208]
[1759242949401,0.001,4130.9,4129.3,0.02421717]
[1759242949605,0.1208,4130.6,4129.7,0.1208]
[1759242949906,2.42101921,4130.5,4130.2,0.1208]
[1759242950107,2.40000001,4130.7,4129.3,0.29232172]
[1759242950108,2.42125413,4130.1,4129.3,0.29232172]
[1759242950268,1e-08,4130.7,4129.8,0.1208]
[1759242950817,1e-08,4130.7,4129.8,2.54221677]
[1759242950818,2.42106213,4130.5,4129.8,2.54221677]
[1759242950981,1e-08,4130.7,4129.4,2.899]
[1759242950982,1e-08,4130.7,4130.5,0.1208]
[1759242953376,1e-08,4130.7,4130.6,2.42095579]
[1759242953802,1e-08,4130.7,4130.6,5.31995579]
[1759242955401,1e-08,4130.7,4130.5,0.1208]
[1759242955583,1e-08,4130.7,4130.6,2.898]
[1759242955784,1e-08,4130.7,4130.6,5.31895579]
[1759242956193,1e-08,4130.7,4130.6,2.898]
[1759242956501,1e-08,4130.7,4130.6,5.31895579]
[1759242956707,1e-08,4130.7,4130.6,6.22583762]
[1759242957101,1e-08,4130.7,4130.6,6.89703762]
[1759242957509,1e-08,4130.7,4130.6,4.47608183]
[1759242957709,1e-08,4130.7,4130.6,5.31895579]
[1759242959424,1e-08,4130.7,4130.6,6.11095579]
[1759242961425,1e-08,4131.4,4131.3,3.21254559]
[1759242961627,1e-08,4131.4,4131.3,6.10954559]
[1759242961931,1e-08,4131.4,4131.3,8.50954559]
[1759242962236,1e-08,4131.4,4131.3,9.6025625]
[1759242963283,1e-08,4131.4,4131.3,10.08783409]
[1759242963729,0.001,4131.6,4131.5,3.21242841]
[1759242964219,0.001,4131.6,4131.5,5.61242841]
[1759242965018,0.001,4131.6,4131.5,8.50842841]
[1759242965220,0.001,4131.6,4131.5,9.99185466]
[1759242967023,2.4,4135.3,4131.7,5.61231125]
[1759242967216,0.1208,4134.4,4131.7,5.61231125]
[1759242967705,2.419038,4133.9,4131.7,5.61231125]
[1759242967901,2.41917777,4133.7,4131.7,5.61231125]
[1759242968107,0.12349949,4134.1,4131.7,8.50731125]
[1759242968606,2.41906403,4133.9,4131.7,8.50731125]
[1759242968798,2.41908811,4133.8,4131.7,8.50731125]
[1759242968999,2.41903856,4133.9,4131.7,8.50731125]
[1759242969304,4.93956253,4134.4,4131.7,5.61231125]
[1759242969609,2.41903936,4133.9,4131.7,8.50731125]
[1759242969810,2.41909565,4133.8,4131.7,7.09810784]
[1759242970014,2.41915153,4133.7,4131.7,7.09810784]
[1759242970217,2.41915153,4133.7,4131.7,9.99310784]
[1759242970627,2.4,4134.0,4131.7,7.09810784]
[1759242970798,0.11893751,4134.1,4131.7,9.99210784]
[1759242970998,2.41914562,4133.7,4131.7,7.09810784]
[1759242971296,2.41909446,4133.8,4131.7,9.99210784]
[1759242971524,2.51893751,4134.1,4131.7,9.99210784]
[1759242971697,0.11893751,4134.1,4131.7,9.99210784]
[1759242971899,0.1208,4134.4,4131.7,9.99210784]
[1759242972230,2.4,4134.1,4131.7,9.99210784]
[1759242972413,4.81896331,4134.1,4131.7,9.99210784]
[1759242972617,0.12274758,4134.2,4131.7,9.99210784]
[1759242972803,2.41903506,4133.9,4131.7,9.99210784]
[1759242973205,4.81896463,4134.1,4131.7,9.99210784]
[1759242973603,0.12274758,4134.2,4131.7,9.99210784]
[1759242973800,2.41897278,4134.0,4131.7,9.99210784]
[1759242974195,2.41885499,4134.2,4131.7,9.99210784]
[1759242974400,2.41902172,4134.0,4131.7,9.99210784]
[1759242974616,2.4,4134.1,4131.7,9.99210784]
[1759242974617,2.4189184,4134.1,4131.7,9.99210784]
[1759242975018,0.1208,4134.6,4131.7,9.99210784]
[1759242975219,0.11941768,4134.4,4131.7,9.99210784]
[1759242975529,2.41889262,4134.2,4131.7,9.99210784]
[1759242975831,2.4,4134.3,4131.7,9.99210784]
[1759242975997,0.001,4135.7,4131.7,9.99210784]
[1759242976331,2.4,4134.8,4131.7,9.99210784]
[1759242976500,2.41842275,4135.0,4131.7,9.99210784]
[1759242976501,2.41841679,4135.0,4132.0,0.792]
[1759242976696,2.41841679,4135.0,4131.7,9.20010784]
[1759242976697,0.1208,4135.2,4134.6,0.1208]
[1759242976898,2.41853543,4134.8,4134.7,1.936]
[1759242977211,0.24178645,4135.2,4134.7,2.893]
[1759242977424,2.66005451,4135.2,4134.7,2.893]
[1759242977737,0.1208,4135.2,4134.7,2.893]
[1759242977939,0.001,4135.7,4134.8,0.02418496]
[1759242978114,2.41898812,4135.7,4134.9,5.31142858]
[1759242978446,0.001,4135.7,4135.0,0.02418379]
[1759242978599,0.001,4135.7,4135.1,2.418279]
[1759242978804,0.001,4135.7,4135.2,5.33542512]
[1759242979039,0.001,4135.7,4135.4,2.41810022]
[1759242979264,0.001,4135.7,4135.3,2.893]
[1759242979761,0.001,4135.7,4135.4,2.41814078]
[1759242979948,0.001,4135.7,4135.3,2.893]
[1759242980535,0.001,4135.7,4135.3,5.3111929]
[1759242980744,0.001,4135.7,4135.3,2.893]
[1759242981479,0.001,4135.7,4135.3,5.31119883]
[1759242981773,0.001,4135.7,4135.5,2.41808247]
[1759242982077,0.001,4135.7,4135.6,5.3342091]
[1759242982283,0.001,4135.7,4135.6,6.10202882]
[1759242982437,0.001,4135.7,4135.6,6.95404239]
[1759242982779,0.001,4135.7,4135.6,4.06204239]
[1759242983062,0.001,4135.7,4135.6,6.95404239]
[1759242983563,0.001,4135.7,4135.6,4.06204239]
[1759242983764,0.001,4135.7,4135.6,6.95304239]
[1759242984162,0.001,4135.7,4135.6,4.06204239]
[1759242984369,0.001,4135.7,4135.6,6.95304239]
[1759242985343,0.001,4135.7,4135.6,4.06204239]
[1759242985543,0.001,4135.7,4135.6,6.95304239]
[1759242987770,0.001,4135.7,4135.6,7.07384239]
[1759242988088,0.001,4135.7,4135.6,9.47384239]
[1759242988777,1e-08,4136.6,4136.5,3.20950271]
[1759242988942,1e-08,4136.6,4136.5,6.42045298]
[1759242989139,1e-08,4136.6,4136.5,8.82045298]
[1759242990176,1e-08,4137.6,4137.5,3.20891842]
[1759242990526,1e-08,4137.6,4137.5,6.09891842]
[1759242990640,1e-08,4137.6,4137.5,4.06050999]
[1759242990845,1e-08,4137.6,4137.5,6.94950999]
[1759242991157,1e-08,4137.6,4137.5,4.06050999]
[1759242991356,1e-08,4137.6,4137.5,6.94950999]
[1759242992469,0.12106783,4139.3,4138.4,2.41637635]
[1759242992690,0.001,4139.5,4138.5,2.889]
[1759242992982,0.001,4139.5,4138.5,5.30530073]
[1759242993181,0.001,4139.5,4138.5,2.889]
[1759242993470,0.001,4139.5,4139.0,2.41601399]
[1759242993674,0.001,4139.5,4138.8,2.416117]
[1759242993974,0.001,4139.5,4138.9,2.888]
[1759242994377,2.41602722,4139.1,4137.6,0.792]
[1759242994676,2.41602722,4139.1,4138.3,2.41642768]
[1759242994863,0.001,4139.5,4138.4,2.888]
[1759242995052,0.001,4139.5,4138.5,2.888]
[1759242995254,2.41598042,4139.2,4138.5,2.888]
[1759242995459,2.41598478,4139.1,4138.5,2.888]
[1759242995777,2.41586403,4139.4,4138.5,5.30431875]
[1759242995977,2.41587536,4139.3,4138.5,2.41631875]
[1759242996182,0.001,4139.5,4138.8,2.41614158]
[1759242996382,0.001,4139.5,4138.9,2.888]
[1759242997176,2.4158453,4139.4,4139.0,2.887]
[1759242997479,0.001,4139.5,4139.0,2.887]
[1759242997974,0.001,4139.5,4138.5,0.792]
[1759242998186,2.41603827,4139.1,4137.2,2.41709368]
[1759242998386,0.001,4139.5,4137.5,0.792]
[1759242998588,2.41610512,4138.9,4138.1,2.416526]
[1759242998753,0.001,4139.5,4138.2,2.887]
[1759242998957,0.001,4139.5,4138.8,0.1208]
[1759242999161,2.41610089,4138.9,4138.8,0.1208]
[1759242999583,2.41610089,4138.9,4137.9,2.41665833]
[1759242999584,2.41621765,4138.7,4138.5,0.1208]
[1759242999801,2.41621765,4138.7,4137.5,0.4757491]
[1759242999802,2.41645119,4138.3,4138.2,0.1208]
[1759243000160,2.41645119,4138.3,4138.0,0.549]
[1759243000161,2.41599087,4139.1,4138.0,2.887]
[1759243000356,2.41662638,4138.0,4137.9,0.1208]
[1759243000569,0.1208,4138.5,4137.7,0.1208]
[1759243000772,2.4167018,4137.9,4137.7,0.1208]
[1759243001177,2.41674319,4137.8,4137.7,0.1208]
[1759243001401,2.41662537,4138.1,4137.7,0.1208]
[1759243001695,2.4,4138.4,4137.7,0.1208]
[1759243001696,2.41674319,4137.8,4137.7,0.1208]
[1759243001911,2.4,4138.7,4137.6,2.886]
[1759243002087,2.4,4138.7,4135.7,2.41797035]
[1759243002088,0.1208,4138.1,4137.5,0.1208]
[1759243002289,2.41708789,4137.3,4137.2,0.1208]
[1759243002585,2.41708789,4137.3,4136.3,0.47219012]
[1759243002762,0.1208,4137.5,4137.0,0.1208]
[1759243003163,2.5208,4137.8,4137.2,0.1208]
[1759243003368,2.41581951,4139.4,4137.2,3.0068]
[1759243003584,2.4,4138.2,4137.7,0.1208]
[1759243003787,2.41693522,4137.5,4136.3,0.47741124]
[1759243003974,2.41711073,4137.2,4136.4,2.886]
[1759243004303,2.4,4137.4,4136.4,2.886]
[1759243004304,2.41698817,4137.4,4137.2,0.1208]
[1759243004480,2.4,4137.9,4137.2,0.1208]
[1759243004812,2.41693083,4137.5,4137.2,0.1208]
[1759243005010,2.4,4137.9,4137.2,0.1208]
[1759243005164,2.41701777,4137.4,4137.2,0.1208]
[1759243005365,2.4,4137.9,4137.2,0.1208]
[1759243005579,2.886,4138.9,4137.3,0.02417035]
[1759243005778,2.4,4138.2,4137.7,0.1208]
[1759243005982,2.41666955,4138.0,4137.7,0.1208]
[1759243006315,2.41658497,4138.1,4137.6,2.767]
[1759243006485,2.41662638,4138.0,4137.9,0.1208]
[1759243006822,2.4,4138.4,4137.9,0.1208]
[1759243006823,2.41655307,4138.2,4137.9,0.1208]
[1759243007016,2.41645119,4138.3,4137.9,0.1208]
[1759243007198,0.1208,4138.5,4137.9,0.1208]
[1759243007513,2.4,4138.4,4137.9,0.1208]
[1759243007810,2.53714243,4138.5,4137.9,0.1208]
[1759243008016,0.1208,4138.5,4137.9,0.1208]
[1759243008192,4.81615927,4138.8,4138.3,0.1208]
[1759243008514,2.4163928,4138.4,4138.3,0.1208]
[1759243008717,2.4,4138.3,4137.8,2.885]
[1759243008920,2.41645757,4138.3,4138.0,0.1208]
[1759243009105,2.41656799,4138.1,4138.0,0.1208]
[1759243009308,2.41684645,4137.7,4135.9,0.72662361]
[1759243009514,14.18775285,4138.8,4135.4,2.41810472]
[1759243009515,2.41692373,4137.5,4136.4,2.885]
[1759243009813,2.4,4138.2,4136.5,0.33618901]
[1759243010016,2.41708924,4137.3,4136.5,2.41746344]
[1759243010216,2.4,4138.3,4136.4,2.41754286]
[1759243010419,2.4,4138.3,4135.1,2.41828927]
[1759243010420,16.58775285,4138.1,4134.4,2.323]
[1759243010718,2.41735125,4136.8,4135.8,2.41790575]
[1759243010920,3.192,4137.9,4135.9,2.885]
[1759243011123,2.41727268,4136.9,4136.2,2.41767086]
[1759243011298,2.41733504,4136.8,4136.3,0.02417619]
[1759243011499,2.41727474,4136.9,4136.1,2.885]
[1759243011821,2.41735287,4136.8,4136.1,2.885]
[1759243012016,2.41735287,4136.8,4136.1,5.30272063]
[1759243012187,2.4,4137.4,4136.1,2.885]
[1759243012516,0.792,4137.8,4135.6,2.4180227]
[1759243012693,2.41743637,4136.7,4135.7,2.885]
[1759243012894,2.4,4138.0,4135.8,0.81617911]
[1759243013107,2.4,4139.1,4136.1,0.792]
[1759243013313,2.4,4138.9,4136.9,2.41724834]
[1759243013512,2.41690233,4137.6,4137.0,1.987]
[1759243013695,2.41615927,4138.8,4136.3,0.792]
[1759243013902,2.41675766,4137.8,4136.2,2.885]
[1759243014104,2.41737152,4136.8,4136.2,2.885]
[1759243014315,2.41753307,4136.5,4135.8,2.4178818]
[1759243014532,2.4174576,4136.6,4135.9,5.302835]
[1759243014733,2.41751075,4136.5,4135.9,2.885]
[1759243014942,2.41751256,4136.5,4135.9,2.885]
[1759243015232,2.41769448,4136.2,4135.8,2.885]
[1759243015418,2.41768435,4136.2,4135.2,2.41822261]
[1759243015620,2.41748168,4136.6,4135.6,2.885]
[1759243015837,2.41797035,4135.7,4135.6,2.885]
[1759243016023,2.41748168,4136.6,4134.6,0.49653954]
[1759243016227,2.41830369,4135.2,4134.7,0.464]
[1759243016441,2.41828012,4135.2,4134.7,0.464]
[1759243016618,2.4,4136.0,4134.7,0.80192608]
[1759243016934,2.41801272,4135.7,4134.9,2.41842712]
[1759243017143,2.41790363,4135.9,4134.9,2.41842712]
[1759243017300,2.4,4136.6,4135.0,2.4425598]
[1759243017498,2.4,4135.8,4134.8,1.237]
[1759243017723,2.41826195,4135.3,4134.8,1.237]
[1759243018000,2.41756116,4136.4,4134.6,0.002]
[1759243018001,2.41852603,4134.8,4134.6,0.002]
[1759243018238,2.41827343,4135.2,4134.6,0.002]
[1759243018407,2.41836368,4135.1,4134.6,0.002]
[1759243018609,2.4183086,4135.2,4134.6,0.002]
[1759243018807,2.4,4136.4,4134.6,0.4647717]
[1759243019119,14.18775285,4137.1,4134.7,0.02418555]
[1759243019301,0.1208,4136.4,4135.8,0.1208]
[1759243019611,2.41772044,4136.2,4136.0,0.1208]
[1759243020015,2.41769165,4136.2,4136.0,0.1208]
[1759243020344,0.12017103,4136.6,4136.0,0.1208]
[1759243020548,0.1208,4136.8,4136.2,2.4176348]
[1759243020748,0.72696696,4138.2,4136.5,0.1208]
[1759243020749,0.1208,4137.1,4136.5,0.1208]
[1759243020907,2.41699141,4137.4,4136.6,2.90817444]
[1759243021109,0.1208,4137.5,4137.0,0.1208]
[1759243021309,0.1208,4137.5,4136.8,2.41731216]
[1759243021310,2.41639071,4138.5,4137.3,0.1208]
[1759243021636,4.81676304,4137.8,4137.3,0.1208]
[1759243021937,0.1208,4137.9,4137.3,0.1208]
[1759243021938,2.41680774,4137.7,4137.3,0.1208]
[1759243022135,0.1208,4137.9,4137.3,0.1208]
[1759243022342,0.11799992,4138.2,4137.4,2.884]
[1759243022639,0.1208,4138.5,4137.8,0.1208]
[1759243023132,0.1208,4138.5,4137.8,2.53754309]
[1759243023445,0.1208,4138.5,4137.8,0.1208]
[1759243023750,2.4,4138.3,4137.8,0.1208]
[1759243023943,2.5208,4138.5,4137.8,0.1208]
[1759243024444,4.8163928,4138.4,4137.8,0.1208]
[1759243024639,2.4166249,4138.1,4137.8,0.1208]
[1759243024844,2.41645484,4138.3,4137.8,0.1208]
[1759243025045,0.1208,4138.5,4137.8,0.1208]
[1759243025211,2.41640545,4138.4,4137.8,0.1208]
[1759243025412,2.4,4138.4,4137.8,0.1208]
[1759243025836,0.1208,4138.5,4137.9,2.41666219]
[1759243026040,0.1208,4138.9,4138.3,0.1208]
[1759243026418,2.4,4138.7,4138.3,0.1208]
[1759243026613,2.4163928,4138.4,4138.3,0.1208]
[1759243026823,2.4,4138.8,4137.6,2.884]
[1759243027046,2.41656799,4138.1,4138.0,0.1208]
[1759243027354,2.41650959,4138.2,4134.9,2.323]
[1759243027513,0.1208,4137.5,4135.1,0.72677675]
[1759243027711,2.41707729,4137.3,4136.9,0.1208]
[1759243027914,2.4,4137.4,4136.9,0.1208]
[1759243028331,0.1208,4138.5,4137.3,0.1208]
[1759243028514,0.001,4139.2,4137.6,2.41684575]
[1759243028515,2.41627603,4138.6,4137.6,2.41684575]
[1759243028714,0.1208,4138.5,4137.9,0.1208]
[1759243028947,2.41697887,4139.2,4137.6,0.25977939]
[1759243028948,2.4,4138.6,4138.1,0.1208]
[1759243029113,2.4,4138.6,4137.6,2.67662723]
[1759243029114,0.12250791,4138.9,4137.8,0.48818861]
[1759243029312,0.001,4139.2,4137.8,0.48818861]
[1759243029541,2.41648102,4138.3,4137.8,0.48818861]
[1759243029741,0.001,4139.2,4137.4,0.02416976]
[1759243030061,0.001,4139.2,4137.5,0.29071698]
[1759243030223,2.41598415,4139.1,4137.6,2.41686001]
[1759243030427,0.11956654,4139.2,4137.7,2.883]
[1759243030747,0.001,4139.2,4137.8,0.792]
[1759243031120,0.001,4139.2,4138.5,2.41628099]
[1759243031319,0.001,4139.2,4138.7,2.4161658]
[1759243031517,0.001,4139.2,4138.4,2.41637699]
[1759243031714,0.001,4139.2,4138.6,2.41626082]
[1759243031940,0.001,4139.2,4138.7,5.29920705]
[1759243032139,0.001,4139.2,4138.8,2.41610167]
[1759243032347,0.001,4139.2,4139.0,2.4159916]
[1759243032621,0.001,4139.2,4139.1,2.883]
[1759243032926,0.001,4139.2,4139.1,5.29898415]
[1759243033523,0.001,4139.2,4139.1,2.883]
[1759243034253,2.41605766,4139.0,4137.9,2.41665453]
[1759243034455,0.001,4139.2,4138.0,0.24166545]
[1759243034657,0.001,4139.2,4137.5,0.29071698]
[1759243034856,0.001,4139.2,4138.1,2.883]
[1759243035461,0.001,4139.2,4138.3,2.41641615]
[1759243035617,0.001,4139.2,4138.4,2.44055067]
[1759243035816,0.001,4139.2,4138.1,2.883]
[1759243036015,2.41610142,4138.9,4138.2,0.2883]
[1759243036216,2.41606051,4139.0,4138.2,2.70476299]
[1759243036418,2.41694204,4139.2,4138.3,0.792]
[1759243036419,0.001,4139.2,4138.3,0.792]
[1759243036648,0.001,4139.2,4138.9,2.41609718]
[1759243036861,0.001,4139.2,4139.0,2.882]
[1759243037065,0.001,4139.2,4139.1,2.41598415]
[1759243037238,0.001,4139.2,4139.1,3.41179841]
[1759243037421,0.001,4139.2,4139.1,5.8519424]
[1759243037736,0.001,4139.2,4139.1,5.82778256]
[1759243039231,0.001,4139.2,4139.1,2.94578256]
[1759243039435,0.001,4139.2,4139.1,5.9727424]
[1759243039636,0.001,4139.2,4139.1,5.94858256]
[1759243039929,0.001,4139.2,4139.1,6.74058256]
[1759243040637,0.001,4139.2,4139.1,3.85858256]
[1759243040839,0.001,4139.2,4139.1,6.74058256]
[1759243042724,0.001,4139.2,4139.1,3.85858256]
[1759243042967,0.001,4139.2,4139.1,3.06658256]
[1759243043195,0.001,4139.2,4139.1,0.1208]
[1759243043494,2.41692578,4139.2,4139.1,3.0028]
[1759243043664,2.41692578,4139.2,4139.1,0.1208]
[1759243043860,0.001,4139.2,4139.1,0.38]
[1759243044094,0.001,4139.2,4139.1,0.5008]
[1759243044595,0.001,4139.2,4139.1,2.79598415]
[1759243044786,0.001,4139.2,4139.1,3.07558257]
[1759243045099,0.001,4139.2,4139.1,0.65959842]
[1759243045397,0.001,4139.2,4139.1,2.881]
[1759243046771,2.41692578,4139.2,4139.1,2.881]
[1759243046986,2.41692578,4139.2,4138.2,2.41649353]
[1759243047185,0.001,4139.2,4138.3,2.881]
[1759243047391,2.41617154,4138.8,4138.3,2.881]
[1759243047589,0.001,4139.2,4137.8,0.002]
[1759243047889,2.41655717,4138.2,4137.9,0.442]
[1759243048089,0.001,4139.2,4137.9,2.881]
[1759243048284,2.41598415,4139.1,4137.9,2.881]
[1759243048483,2.41614495,4138.9,4138.0,0.02416626]
[1759243048685,0.001,4139.2,4138.0,0.02416626]
[1759243048686,2.41605243,4139.0,4138.2,2.41650008]
[1759243048918,2.41612056,4138.9,4138.2,2.41650008]
[1759243049288,0.001,4139.2,4137.9,0.52997304]
[1759243049514,2.41637118,4138.5,4138.0,2.881]
[1759243049713,2.41628989,4138.6,4138.0,2.881]
[1759243050013,2.401,4139.2,4137.8,0.002]
[1759243050014,2.41620643,4138.8,4138.1,2.881]
[1759243050216,0.001,4139.2,4138.2,0.02416509]
[1759243050416,0.001,4139.2,4138.4,2.4163928]
[1759243050647,0.001,4139.2,4138.5,0.02416334]
[1759243050782,0.001,4139.2,4138.4,0.53215573]
[1759243050988,0.001,4139.2,4138.7,2.41616931]
[1759243051188,0.001,4139.2,4138.8,2.881]
[1759243051414,0.001,4139.2,4138.4,0.53215573]
[1759243051592,0.001,4139.2,4138.5,2.881]
[1759243051800,2.41693011,4139.2,4138.5,5.29732796]
[1759243052005,0.001,4139.2,4138.5,2.881]
[1759243052314,0.001,4139.2,4138.6,2.41627603]
[1759243052516,0.001,4139.2,4136.7,4.81734207]
[1759243052818,2.41693542,4139.2,4138.4,2.41633816]
[1759243053027,0.001,4139.2,4138.5,2.646]
[1759243053318,0.001,4139.2,4138.6,0.2646]
[1759243053501,0.001,4139.2,4138.6,2.68083128]
[1759243053690,0.001,4139.2,4138.9,2.41608501]